bitfinex-derivatives/quotes_BTCF0:USTF0_20210705
["timestamp","ask_amount","ask_price","bid_price","bid_amount"]
[1625451040699,0.618,34536.0,34534.0,0.08535723]
[1625451041199,0.118,34536.0,34534.0,0.08535723]
[1625451041400,0.118,34536.0,34532.0,0.9145]
[1625451041401,6.2478989,34535.0,34532.0,0.9145]
[1625451041499,6.3658989,34535.0,34532.0,0.9145]
[1625451041750,6.3658989,34535.0,34533.0,0.00492952]
[1625451041950,0.48115088,34534.0,34533.0,0.00492952]
[1625451042054,0.74827088,34534.0,34533.0,0.00492952]
[1625451042150,0.80727088,34534.0,34533.0,0.00492952]
[1625451042350,0.80727088,34534.0,34532.0,0.9145]
[1625451042702,7.0640574,34534.0,34532.0,0.9145]
[1625451042951,6.24858151,34533.0,34532.0,0.9145]
[1625451043051,6.30758151,34533.0,34532.0,0.9145]
[1625451043150,6.36658151,34533.0,34532.0,0.9145]
[1625451044106,6.36658151,34533.0,34532.0,0.91944492]
[1625451044355,4.84673385,34533.0,34532.0,0.91944492]
[1625451044704,4.84673385,34533.0,34532.0,0.9145]
[1625451047007,5.04833385,34533.0,34532.0,0.9145]
[1625451049060,4.84673385,34533.0,34532.0,0.9145]
[1625451049263,3.4957394,34533.0,34532.0,0.9145]
[1625451053172,3.4367394,34533.0,34532.0,0.9145]
[1625451053375,3.3777394,34533.0,34532.0,0.9145]
[1625451053573,1.1823101,34533.0,34532.0,0.91944963]
[1625451054176,0.0843153,34533.0,34532.0,0.91944963]
[1625451054526,1.07069578,34534.0,34532.0,0.91944963]
[1625451054626,0.73393947,34534.0,34532.0,1.00453132]
[1625451054931,0.73393947,34534.0,34533.0,0.00494943]
[1625451055428,0.56547717,34534.0,34533.0,0.00494943]
[1625451055528,0.62447717,34534.0,34533.0,0.00494943]
[1625451055628,0.68347717,34534.0,34533.0,0.00494943]
[1625451055832,0.68347717,34534.0,34533.0,0.03644943]
[1625451056032,1.10412531,34534.0,34533.0,0.03644943]
[1625451056231,1.10412531,34534.0,34533.0,0.0315]
[1625451056432,2.78661787,34534.0,34533.0,0.0315]
[1625451057031,0.59915088,34534.0,34533.0,0.0315]
[1625451058183,0.59915088,34534.0,34533.0,0.03644971]
[1625451058382,0.59915088,34534.0,34533.0,0.0315]
[1625451058934,0.59915088,34534.0,34533.0,0.03644981]
[1625451059487,0.59915088,34534.0,34533.0,0.33296981]
[1625451059738,0.54015088,34534.0,34533.0,0.33296981]
[1625451059939,0.48115088,34534.0,34533.0,0.33296981]
[1625451060343,1.07073645,34534.0,34533.0,0.33296981]
[1625451060441,1.12973645,34534.0,34533.0,0.33296981]
[1625451060592,1.07073645,34534.0,34533.0,0.33296981]
[1625451060692,1.12973645,34534.0,34533.0,0.33296981]
[1625451060945,1.38195792,34534.0,34533.0,0.33296981]
[1625451061293,1.44095792,34534.0,34533.0,0.33296981]
[1625451061545,1.10442398,34534.0,34533.0,0.33296981]
[1625451062696,0.9359367,34534.0,34533.0,0.03644981]
[1625451063200,1.44104473,34534.0,34533.0,0.03644981]
[1625451063998,1.10439754,34534.0,34533.0,0.03644981]
[1625451064100,1.10439754,34534.0,34533.0,0.35552981]
[1625451064701,0.9359367,34534.0,34533.0,0.35552981]
[1625451065203,1.44106854,34534.0,34533.0,0.35552981]
[1625451065956,1.1044069,34534.0,34533.0,0.35552981]
[1625451066708,1.44096745,34534.0,34533.0,0.35552981]
[1625451067909,1.10436092,34534.0,34533.0,0.35552981]
[1625451069963,1.77687528,34534.0,34533.0,0.35552981]
[1625451070766,1.77687528,34534.0,34533.0,0.32402981]
[1625451070767,2.7857825,34534.0,34533.0,0.32402981]
[1625451070866,2.7857825,34534.0,34533.0,0.00494981]
[1625451071870,3.96204275,34534.0,34533.0,0.00494981]
[1625451073781,3.90304275,34534.0,34533.0,0.24301981]
[1625451073903,3.84404275,34534.0,34533.0,0.24301981]
[1625451073982,3.60346731,34534.0,34533.0,0.24301981]
[1625451074081,1.60146731,34534.0,34533.0,0.30201981]
[1625451074183,1.60146731,34534.0,34533.0,1.02374613]
[1625451074295,1.60146731,34534.0,34533.0,1.06382051]
[1625451074385,0.58980802,34535.0,34533.0,1.12282051]
[1625451074490,0.58980802,34535.0,34533.0,1.13282051]
[1625451074583,1.01040192,34538.0,34533.0,1.13282051]
[1625451074834,1.01040192,34538.0,34534.0,0.01351677]
[1625451074933,1.01040192,34538.0,34535.0,4.8148]
[1625451075037,1.17877418,34540.0,34535.0,4.8148]
[1625451075038,0.16881002,34540.0,34535.0,4.8148]
[1625451075285,0.16881002,34540.0,34535.0,4.8738]
[1625451075386,0.16881002,34540.0,34536.0,0.0135164]
[1625451075586,0.16881002,34540.0,34536.0,0.0725164]
[1625451075887,0.24057544,34541.0,34537.0,0.00857305]
[1625451075985,0.24057544,34541.0,34537.0,0.07251579]
[1625451076086,0.24057544,34541.0,34540.0,0.24057544]
[1625451076187,0.24057544,34541.0,34540.0,0.47314544]
[1625451076485,0.24057544,34541.0,34540.0,0.47808798]
[1625451077186,7.544e-05,34541.0,34540.0,0.47808798]
[1625451077286,0.24057544,34547.0,34540.0,0.47808798]
[1625451077388,0.29957544,34547.0,34540.0,0.47808798]
[1625451077488,0.24057544,34547.0,34540.0,0.53708798]
[1625451077589,0.24057544,34547.0,34540.0,0.59608798]
[1625451077692,0.24057544,34547.0,34540.0,0.56858798]
[1625451077791,0.24057544,34547.0,34541.0,0.00494247]
[1625451077891,0.29957544,34547.0,34541.0,0.06394247]
[1625451078142,0.29957544,34547.0,34546.0,0.24057544]
[1625451078541,0.29957544,34547.0,34546.0,0.24551779]
[1625451079745,0.29957544,34547.0,34546.0,0.27701779]
[1625451080849,0.24057544,34547.0,34546.0,0.27701779]
[1625451081150,1.18312904,34549.0,34546.0,0.27701779]
[1625451081251,0.118,34549.0,34546.0,0.27701779]
[1625451081500,0.118,34549.0,34547.0,0.00494199]
[1625451081601,0.118,34549.0,34547.0,0.28455199]
[1625451082001,0.118,34549.0,34548.0,0.00494194]
[1625451082201,0.118,34549.0,34548.0,0.24551738]
[1625451082652,0.118,34549.0,34548.0,0.27701738]
[1625451083553,0.059,34549.0,34548.0,0.27701738]
[1625451083653,0.24057544,34551.0,34548.0,0.27701738]
[1625451083955,0.24057544,34551.0,34549.0,0.00494169]
[1625451084057,0.24057544,34551.0,34549.0,5.04744169]
[1625451084506,0.24057544,34551.0,34550.0,0.00494193]
[1625451085058,1.42437,34555.0,34550.0,0.00494193]
[1625451085258,1.48337,34555.0,34550.0,0.00494193]
[1625451085457,1.48337,34555.0,34550.0,0.06394193]
[1625451085659,0.059,34555.0,34550.0,0.09544193]
[1625451085858,1.18207501,34556.0,34550.0,0.09544193]
[1625451085959,1.18207501,34556.0,34551.0,0.0049413]
[1625451086059,1.18207501,34556.0,34551.0,0.0639413]
[1625451086161,1.18175565,34557.0,34555.0,0.48115088]
[1625451086261,1.18175565,34557.0,34555.0,0.78844088]
[1625451086510,1.18175565,34557.0,34556.0,0.00494107]
[1625451086912,1.18169771,34559.0,34556.0,0.00494107]
[1625451087013,1.18169771,34559.0,34556.0,0.06394107]
[1625451087112,1.24069771,34559.0,34556.0,0.06394107]
[1625451087413,1.24069771,34559.0,34557.0,0.00494099]
[1625451087513,1.24069771,34559.0,34557.0,0.06394099]
[1625451087614,0.059,34559.0,34557.0,0.06394099]
[1625451087915,0.059,34559.0,34558.0,0.00494086]
[1625451088164,0.059,34559.0,34558.0,0.2455163]
[1625451088265,0.059,34559.0,34558.0,0.24057544]
[1625451088467,0.059,34559.0,34558.0,0.24551625]
[1625451089417,0.059,34559.0,34558.0,0.27701625]
[1625451091423,0.059,34559.0,34558.0,0.27207544]
[1625451091873,0.059,34559.0,34558.0,0.33107544]
[1625451091973,0.059,34559.0,34558.0,0.33600821]
[1625451092173,0.059,34559.0,34558.0,0.27700821]
[1625451092273,0.059,34559.0,34558.0,0.33600821]
[1625451094981,0.059,34559.0,34558.0,0.27700821]
[1625451095179,0.059,34559.0,34558.0,0.27207544]
[1625451095879,1.17909542,34563.0,34558.0,0.27207544]
[1625451095880,1.17880835,34564.0,34558.0,0.27207544]
[1625451096079,1.23780835,34564.0,34558.0,0.27207544]
[1625451096284,1.23780835,34564.0,34563.0,0.48115088]
[1625451096385,1.23780835,34564.0,34563.0,0.76828088]
[1625451096785,0.059,34564.0,34563.0,0.76828088]
[1625451097635,0.059,34564.0,34563.0,0.79978088]
[1625451098638,1.17839315,34565.0,34563.0,0.79978088]
[1625451098838,1.23739315,34565.0,34563.0,0.79978088]
[1625451099040,1.17839315,34565.0,34563.0,0.79978088]
[1625451099292,1.17809099,34566.0,34563.0,0.79978088]
[1625451100190,1.17809099,34566.0,34565.0,0.24057544]
[1625451100692,1.1774829,34567.0,34565.0,0.24057544]
[1625451100794,1.2364829,34567.0,34565.0,0.24057544]
[1625451100994,1.2954829,34567.0,34565.0,0.24057544]
[1625451102249,0.118,34567.0,34565.0,0.24057544]
[1625451103149,1.29351454,34567.0,34565.0,0.24057544]
[1625451104204,1.00766837,34566.0,34565.0,0.24057544]
[1625451104304,1.06666837,34566.0,34565.0,0.24057544]
[1625451104554,1.06666837,34566.0,34565.0,0.24551644]
[1625451108212,1.06666837,34566.0,34565.0,0.33191644]
[1625451111317,1.06666837,34566.0,34565.0,0.24551644]
[1625451118380,1.12566837,34566.0,34565.0,0.24551644]
[1625451119082,2.30096357,34566.0,34565.0,0.24551644]
[1625451119634,2.51753357,34566.0,34565.0,0.24551644]
[1625451119934,2.45853357,34566.0,34565.0,0.24551644]
[1625451120235,2.51753357,34566.0,34565.0,0.24551644]
[1625451120333,2.75810901,34566.0,34565.0,0.24551644]
[1625451120633,2.69910901,34566.0,34565.0,0.24551644]
[1625451120884,2.69910901,34566.0,34565.0,4.82201644]
[1625451121333,2.69910901,34566.0,34565.0,0.24551644]
[1625451121533,2.75810901,34566.0,34565.0,0.24551644]
[1625451122636,2.54153901,34566.0,34565.0,0.24551644]
[1625451122737,0.35857544,34566.0,34565.0,0.24551644]
[1625451123291,2.5408103,34566.0,34565.0,0.24551644]
[1625451123642,2.8260703,34566.0,34565.0,0.24551644]
[1625451124544,2.83908973,34566.0,34565.0,0.24551644]
[1625451124644,4.1814624,34566.0,34565.0,0.24551644]
[1625451124745,4.1814624,34566.0,34565.0,0.004941]
[1625451125044,4.1814624,34566.0,34564.0,0.00493353]
[1625451125247,7.6623624,34566.0,34564.0,0.00493353]
[1625451125348,0.01302195,34565.0,34548.0,0.9621]
[1625451125446,0.07202195,34565.0,34548.0,0.9051]
[1625451125646,0.13102195,34565.0,34551.0,0.00492762]
[1625451125749,1.00539681,34555.0,34551.0,0.00492762]
[1625451125849,1.27152681,34555.0,34551.0,0.00492762]
[1625451125948,1.33052681,34555.0,34551.0,0.00492762]
[1625451126348,1.24559834,34554.0,34552.0,0.24057544]
[1625451126451,1.30459834,34554.0,34552.0,0.24057544]
[1625451126549,1.36359834,34554.0,34552.0,0.24057544]
[1625451126800,1.36359834,34554.0,34553.0,0.00492838]
[1625451127198,0.35857544,34554.0,34553.0,0.00492838]
[1625451127699,2.86742855,34554.0,34553.0,0.00492838]
[1625451127802,3.87100324,34554.0,34553.0,0.00492838]
[1625451128299,5.37569523,34554.0,34553.0,0.00492838]
[1625451128701,3.87100324,34554.0,34553.0,0.00492838]
[1625451129100,5.37611589,34554.0,34553.0,0.00492838]
[1625451129202,5.37611589,34554.0,34552.0,0.24057544]
[1625451130054,5.0175308,34553.0,34552.0,0.24057544]
[1625451130154,5.1355308,34553.0,34552.0,0.24057544]
[1625451131908,5.1355308,34553.0,34552.0,0.2455039]
[1625451132212,3.63030501,34553.0,34552.0,0.2455039]
[1625451134163,4.30462884,34553.0,34552.0,0.2455039]
[1625451135669,4.30462884,34553.0,34552.0,0.24057544]
[1625451135968,4.30462884,34553.0,34552.0,0.24550725]
[1625451136369,4.24562884,34553.0,34552.0,0.24550725]
[1625451136471,4.18662884,34553.0,34552.0,0.49871725]
[1625451136670,4.18662884,34553.0,34552.0,0.53021725]
[1625451136773,4.18662884,34553.0,34552.0,0.58921725]
[1625451136870,4.18662884,34553.0,34552.0,0.64821725]
[1625451137071,1.67786344,34553.0,34552.0,0.64821725]
[1625451137620,1.18203197,34554.0,34552.0,3.54587759]
[1625451137722,0.67649558,34557.0,34552.0,3.54587759]
[1625451138073,0.67649558,34557.0,34553.0,0.00493018]
[1625451138176,0.67649558,34557.0,34556.0,0.68179761]
[1625451138373,0.67649558,34557.0,34556.0,0.74079761]
[1625451138475,0.67649558,34557.0,34556.0,1.22194849]
[1625451138573,0.67649558,34557.0,34556.0,1.22687859]
[1625451138825,1.69156927,34558.0,34556.0,1.22687859]
[1625451138925,0.67691044,34558.0,34557.0,4.8796]
[1625451139023,0.67691044,34558.0,34557.0,4.9386]
[1625451139123,0.67691044,34558.0,34557.0,4.94353008]
[1625451139374,0.67691044,34558.0,34557.0,5.62546291]
[1625451139875,0.67691044,34558.0,34557.0,5.65696291]
[1625451139976,0.67691044,34558.0,34557.0,6.67986477]
[1625451140278,0.67719459,34559.0,34557.0,6.67986477]
[1625451140428,0.67719459,34559.0,34558.0,0.24057544]
[1625451140527,0.67719459,34559.0,34558.0,0.29957544]
[1625451140730,0.67719459,34559.0,34558.0,0.30450542]
[1625451140828,1.01587906,34559.0,34558.0,0.98658329]
[1625451141030,1.01587906,34559.0,34558.0,1.01808329]
[1625451141330,1.69322107,34559.0,34558.0,1.01808329]
[1625451141831,1.69322107,34559.0,34558.0,2.04123526]
[1625451141832,0.67734201,34559.0,34558.0,2.04123526]
[1625451142883,1.69346292,34559.0,34558.0,2.04123526]
[1625451147804,1.18544617,34561.0,34558.0,2.04123526]
[1625451147805,0.67765374,34561.0,34558.0,3.23503526]
[1625451148255,1.01639593,34562.0,34560.0,1.70545555]
[1625451148354,1.01639593,34562.0,34560.0,1.97376555]
[1625451148554,1.01639593,34562.0,34561.0,0.24550436]
[1625451148755,1.18564454,34563.0,34561.0,0.92769517]
[1625451149056,1.18564454,34563.0,34562.0,0.00492894]
[1625451149464,2.87997424,34563.0,34562.0,0.00492894]
[1625451150558,2.87997424,34563.0,34562.0,0.27700438]
[1625451151811,2.93897424,34563.0,34562.0,0.27700438]
[1625451152365,4.29885648,34563.0,34562.0,0.27700438]
[1625451154116,4.29885648,34563.0,34562.0,0.27207544]
[1625451154214,4.56963648,34563.0,34562.0,0.27698812]
[1625451155115,6.09912724,34563.0,34562.0,0.27698812]
[1625451155267,6.15812724,34563.0,34562.0,0.27698812]
[1625451155515,6.15812724,34563.0,34562.0,0.27207544]
[1625451155821,5.48036148,34563.0,34562.0,0.24548833]
[1625451156020,5.48036148,34563.0,34562.0,0.24057544]
[1625451156116,6.15943798,34563.0,34562.0,0.24057544]
[1625451157424,7.85454391,34563.0,34562.0,0.24057544]
[1625451157520,7.85454391,34563.0,34550.0,1.64300621]
[1625451158020,7.85454391,34563.0,34551.0,0.00491394]
[1625451158570,1.76698888,34557.0,34555.0,0.24057544]
[1625451158671,1.88498888,34557.0,34555.0,0.24057544]
[1625451159122,1.88498888,34557.0,34556.0,0.00491391]
[1625451159221,0.35857544,34557.0,34556.0,0.00491391]
[1625451159774,6.13045178,34557.0,34556.0,0.00491391]
[1625451159878,6.13045178,34557.0,34555.0,0.24057544]
[1625451160327,5.77657199,34556.0,34555.0,0.24057544]
[1625451160425,6.21148199,34556.0,34555.0,0.24057544]
[1625451160526,6.45205743,34556.0,34555.0,0.24057544]
[1625451160726,6.45205743,34556.0,34552.0,0.24057544]
[1625451160826,6.45205743,34556.0,34550.0,0.9608]
[1625451161275,6.45205743,34556.0,34551.0,0.00491474]
[1625451161376,2.37365395,34556.0,34551.0,0.00491474]
[1625451161483,2.37365395,34556.0,34548.0,0.01]
[1625451161582,0.5,34555.0,34548.0,0.01]
[1625451161688,0.559,34555.0,34545.0,0.24057544]
[1625451161778,0.618,34555.0,34545.0,0.24057544]
[1625451162077,5.77274988,34552.0,34546.0,0.00490944]
[1625451162178,5.83174988,34552.0,34546.0,0.00490944]
[1625451162278,4.3167,34547.0,34546.0,0.00490944]
[1625451162375,4.61002,34547.0,34546.0,0.00490944]
[1625451162477,4.66902,34547.0,34546.0,0.00490944]
[1625451162576,5.15017088,34547.0,34542.0,0.68214675]
[1625451162678,10.91459431,34547.0,34541.0,1.02322013]
[1625451162776,10.91459431,34547.0,34540.0,0.24057544]
[1625451162878,11.41459431,34547.0,34543.0,0.00490973]
[1625451162977,10.91459431,34547.0,34543.0,0.00490973]
[1625451163078,10.91459431,34547.0,34540.0,0.24057544]
[1625451163430,4.2256284,34541.0,34540.0,0.24057544]
[1625451163529,4.3436284,34541.0,34540.0,0.24057544]
[1625451163930,4.3436284,34541.0,34540.0,0.24548533]
[1625451164130,4.3436284,34541.0,34540.0,0.24057544]
[1625451164583,4.58420384,34541.0,34540.0,0.24548521]
[1625451164834,5.09143924,34541.0,34540.0,0.24548521]
[1625451165333,3.73928547,34541.0,34540.0,0.24548521]
[1625451166686,3.68028547,34541.0,34540.0,0.24548521]
[1625451166837,3.73928547,34541.0,34540.0,0.24548521]
[1625451167035,3.73928547,34541.0,34540.0,0.24057544]
[1625451167135,3.68028547,34541.0,34540.0,0.24057544]
[1625451167235,3.73928547,34541.0,34540.0,0.24057544]
[1625451167736,2.5561298,34541.0,34540.0,0.24057544]
[1625451168187,3.73610588,34541.0,34540.0,0.24057544]
[1625451170144,2.5561298,34541.0,34540.0,0.24057544]
[1625451170644,2.5561298,34541.0,34540.0,0.46179544]
[1625451170748,2.4971298,34541.0,34540.0,0.46179544]
[1625451170898,1.48297222,34541.0,34540.0,0.46179544]
[1625451171501,1.48297222,34541.0,34540.0,0.22122]
[1625451172103,1.48297222,34541.0,34539.0,4.4165]
[1625451172202,1.48297222,34541.0,34535.0,0.51040367]
[1625451172553,1.48297222,34541.0,34536.0,0.0049112]
[1625451172655,1.48297222,34541.0,34540.0,0.24057544]
[1625451172854,0.97573682,34541.0,34540.0,0.24057544]
[1625451173153,1.48055145,34541.0,34540.0,0.24057544]
[1625451173604,0.86339007,34541.0,34540.0,0.24057544]
[1625451173704,0.80439007,34541.0,34540.0,0.24057544]
[1625451174006,1.47735222,34541.0,34540.0,0.24057544]
[1625451174205,0.80439007,34541.0,34540.0,0.24057544]
[1625451174509,1.47729627,34541.0,34540.0,0.24057544]
[1625451174956,1.53629627,34541.0,34540.0,0.24057544]
[1625451175308,1.47729627,34541.0,34540.0,0.24057544]
[1625451175959,0.29957544,34541.0,34540.0,0.24057544]
[1625451176609,0.29957544,34541.0,34540.0,0.245487]
[1625451177013,0.35857544,34541.0,34540.0,0.245487]
[1625451177212,0.35857544,34541.0,34540.0,0.24057544]
[1625451177412,2.54594871,34541.0,34540.0,0.24057544]
[1625451178720,2.48694871,34541.0,34540.0,0.44028544]
[1625451178819,2.18737327,34541.0,34540.0,0.47669714]
[1625451179068,1.5143224,34541.0,34540.0,0.47669714]
[1625451179168,0.5055162,34545.0,34544.0,4.7343]
[1625451179369,0.5645162,34545.0,34544.0,4.7343]
[1625451179670,0.5055162,34545.0,34544.0,4.79820951]
[1625451179770,1.18032472,34548.0,34544.0,4.79820951]
[1625451179870,1.18032472,34548.0,34544.0,4.82970951]
[1625451180219,1.18032472,34548.0,34545.0,0.004909]
[1625451180322,0.50637352,34550.0,34545.0,0.51501863]
[1625451180621,0.50637352,34550.0,34549.0,0.48115088]
[1625451180724,0.5066266,34552.0,34549.0,0.77521088]
[1625451180820,0.6246266,34552.0,34549.0,0.77521088]
[1625451181122,0.6246266,34552.0,34550.0,0.0049087]
[1625451181723,0.5656266,34552.0,34550.0,0.0049087]
[1625451181825,0.5656266,34552.0,34550.0,0.0364087]
[1625451182225,0.5656266,34552.0,34551.0,0.00490872]
[1625451184129,1.24368825,34552.0,34551.0,0.00490872]
[1625451187890,0.059,34552.0,34551.0,0.00490872]
[1625451188240,1.24612361,34552.0,34551.0,0.00490872]
[1625451188740,0.059,34552.0,34551.0,0.00490872]
[1625451190093,1.24617224,34552.0,34551.0,0.00490872]
[1625451190495,0.059,34552.0,34551.0,0.00490872]
[1625451194399,0.50937753,34552.0,34551.0,0.00490872]
[1625451194499,0.44957753,34552.0,34551.0,0.00490872]
[1625451194598,0.44957753,34552.0,34551.0,0.06390872]
[1625451194801,0.34012504,34553.0,34551.0,0.33598416]
[1625451194901,0.34012504,34553.0,34551.0,0.39498416]
[1625451195203,0.34012504,34553.0,34552.0,0.00489349]
[1625451195301,0.34025849,34556.0,34552.0,0.68486363]
[1625451195400,0.34025849,34556.0,34552.0,0.80286363]
[1625451195750,0.34025849,34556.0,34553.0,0.00479417]
[1625451195852,0.34025849,34556.0,34553.0,0.12279417]
[1625451195953,0.34024649,34558.0,34555.0,0.33968959]
[1625451196059,0.34024649,34558.0,34555.0,0.39868959]
[1625451196161,0.34024649,34558.0,34555.0,0.45768959]
[1625451196260,0.34024649,34558.0,34556.0,0.00479415]
[1625451196364,0.34024649,34558.0,34556.0,0.33574415]
[1625451196460,0.34024649,34558.0,34556.0,0.39474415]
[1625451196762,0.34024649,34558.0,34557.0,0.48115088]
[1625451196862,0.34024649,34558.0,34557.0,0.54494569]
[1625451197062,0.34024785,34559.0,34557.0,0.54494569]
[1625451197363,0.34024785,34559.0,34558.0,3.92549487]
[1625451197462,0.34024785,34559.0,34558.0,3.98449487]
[1625451198066,0.34024785,34559.0,34558.0,4.01599487]
[1625451198166,0.34024785,34559.0,34558.0,0.09529487]
[1625451199167,0.34024785,34559.0,34558.0,0.03629487]
[1625451199521,0.6802734,34559.0,34558.0,0.03629487]
[1625451201322,1.70068342,34559.0,34558.0,0.03629487]
[1625451202225,0.6802734,34559.0,34558.0,0.03629487]
[1625451202322,0.6802734,34559.0,34558.0,0.09529487]
[1625451202426,0.6802734,34559.0,34558.0,0.03629487]
[1625451204728,1.70077777,34559.0,34558.0,0.03629487]
[1625451205279,0.6802734,34559.0,34558.0,0.03629487]
[1625451207333,0.6802734,34559.0,34558.0,0.09529487]
[1625451207435,0.6802734,34559.0,34558.0,0.03629487]
[1625451207837,1.70086686,34559.0,34558.0,0.03629487]
[1625451208737,2.8916363,34559.0,34558.0,0.03629487]
[1625451209591,3.3256363,34559.0,34558.0,0.03629487]
[1625451210344,4.68695622,34559.0,34558.0,0.03629487]
[1625451210844,4.86853166,34559.0,34558.0,0.03629487]
[1625451211593,4.92753166,34559.0,34558.0,0.00479487]
[1625451212148,6.45951348,34559.0,34558.0,0.00479487]
[1625451212301,6.45951348,34559.0,34548.0,0.33979689]
[1625451212704,6.45951348,34559.0,34549.0,0.00479325]
[1625451212808,1.19166596,34550.0,34549.0,0.00479325]
[1625451212913,2.27954228,34550.0,34549.0,0.00479325]
[1625451213206,2.27954228,34550.0,34545.0,0.00479351]
[1625451213306,3.3011951,34550.0,34545.0,0.00479351]
[1625451213408,5.34450074,34550.0,34545.0,0.00479351]
[1625451213756,5.34450074,34550.0,34542.0,0.34046161]
[1625451213757,5.34450074,34550.0,34543.0,0.00479683]
[1625451214009,4.25237109,34546.0,34543.0,0.00479683]
[1625451214110,4.31137109,34546.0,34543.0,0.00479683]
[1625451214210,4.37037109,34546.0,34543.0,0.00479683]
[1625451214309,4.37037109,34546.0,34541.0,0.00479695]
[1625451214609,4.37037109,34546.0,34544.0,0.00479704]
[1625451214711,1.36039969,34545.0,34544.0,0.00479704]
[1625451214811,1.47839969,34545.0,34542.0,0.00479692]
[1625451214910,1.95955057,34545.0,34542.0,0.00479692]
[1625451215060,1.95955057,34545.0,34540.0,0.00479703]
[1625451215162,2.89034155,34543.0,34540.0,0.00479703]
[1625451215262,3.30373155,34543.0,34540.0,0.00479703]
[1625451215761,1.70010049,34541.0,34540.0,0.00479703]
[1625451215861,1.81810049,34541.0,34540.0,0.00479703]
[1625451216465,3.00747966,34541.0,34540.0,0.00479703]
[1625451216815,2.94847966,34541.0,34540.0,0.00479703]
[1625451216917,3.37063054,34541.0,34540.0,0.00479703]
[1625451217266,3.42963054,34541.0,34540.0,4.98819703]
[1625451217366,3.42963054,34541.0,34540.0,0.00479703]
[1625451217467,3.48863054,34541.0,34540.0,0.00479703]
[1625451217667,1.27922507,34541.0,34540.0,0.00479703]
[1625451218070,2.29891175,34541.0,34540.0,0.00479703]
[1625451219173,1.27922507,34541.0,34540.0,0.00479703]
[1625451219273,1.22022507,34541.0,34540.0,0.00479703]
[1625451219673,1.27922507,34541.0,34540.0,0.00479703]
[1625451222383,1.16122507,34541.0,34540.0,0.00479703]
[1625451222488,1.16122507,34541.0,34540.0,0.23869703]
[1625451223232,0.48115088,34541.0,34540.0,0.91960481]
[1625451224332,0.48115088,34541.0,34540.0,1.94104967]
[1625451225086,0.48115088,34541.0,34540.0,1.97254967]
[1625451225232,0.48115088,34541.0,34540.0,2.03154967]
[1625451225887,0.48115088,34541.0,34540.0,3.22335265]
[1625451226035,0.54015088,34541.0,34540.0,3.22335265]
[1625451226888,0.48115088,34541.0,34540.0,3.22335265]
[1625451227237,0.48115088,34541.0,34540.0,3.28235265]
[1625451227637,0.17027126,34544.0,34540.0,3.28235265]
[1625451228038,0.17027126,34544.0,34540.0,3.29235265]
[1625451228140,0.17027126,34544.0,34541.0,0.0047961]
[1625451228344,0.24057544,34545.0,34543.0,4.25433422]
[1625451228442,0.24057544,34545.0,34543.0,4.31333422]
[1625451228541,0.24057544,34545.0,34543.0,4.37233422]
[1625451228641,0.24057544,34545.0,34544.0,0.00479574]
[1625451228742,0.24057544,34545.0,34544.0,0.12279574]
[1625451228841,0.24057544,34545.0,34544.0,4.37467899]
[1625451228943,0.24057544,34545.0,34544.0,4.61525443]
[1625451229040,0.24057544,34545.0,34544.0,4.62560491]
[1625451229449,0.24057544,34545.0,34544.0,4.65710491]
[1625451230092,0.24057544,34545.0,34544.0,6.18639569]
[1625451231897,0.24057544,34545.0,34544.0,11.06919569]
[1625451233950,0.24057544,34550.0,34544.0,11.06919569]
[1625451234152,0.24057544,34550.0,34545.0,0.01032469]
[1625451234253,0.24057544,34550.0,34545.0,0.07411729]
[1625451234352,0.24057544,34550.0,34545.0,0.13311729]
[1625451234501,0.24057544,34550.0,34546.0,0.0151165]
[1625451234602,0.24057544,34550.0,34546.0,0.1609165]
[1625451234700,0.24057544,34550.0,34547.0,0.01032319]
[1625451234803,0.24057544,34550.0,34547.0,0.41505319]
[1625451234902,0.24057544,34550.0,34549.0,4.23996708]
[1625451235005,0.24057544,34550.0,34549.0,4.59854252]
[1625451235203,0.24057544,34550.0,34549.0,4.60333508]
[1625451235904,0.24057544,34550.0,34549.0,4.63483508]
[1625451239718,0.24057544,34550.0,34549.0,4.57583508]
[1625451240720,0.24057544,34550.0,34549.0,4.63483508]
[1625451241020,0.24057544,34550.0,34549.0,4.57583508]
[1625451241471,0.24057544,34550.0,34549.0,4.58583508]
[1625451241877,0.24057544,34550.0,34549.0,3.22904561]
[1625451242877,0.24057544,34550.0,34549.0,3.28804561]
[1625451244129,0.24057544,34550.0,34549.0,3.22904561]
[1625451245680,0.24057544,34550.0,34549.0,3.28804561]
[1625451245780,0.24057544,34550.0,34549.0,3.22904561]
[1625451246882,0.24057544,34550.0,34549.0,2.04185483]
[1625451247787,0.24057544,34550.0,34549.0,1.98285483]
[1625451247890,0.48577544,34550.0,34549.0,1.98285483]
[1625451247990,0.77437976,34550.0,34549.0,1.98285483]
[1625451248490,0.60377544,34550.0,34549.0,1.98285483]
[1625451248592,3.50177028,34550.0,34549.0,0.286868]
[1625451248689,3.50177028,34550.0,34549.0,0.276868]
[1625451248990,4.80649514,34550.0,34549.0,0.276868]
[1625451249090,5.04707058,34550.0,34549.0,0.03629256]
[1625451249291,5.10607058,34550.0,34549.0,0.03629256]
[1625451249401,5.04707058,34550.0,34549.0,0.03629256]
[1625451249492,5.10607058,34550.0,34549.0,0.03629256]
[1625451250194,5.04707058,34550.0,34549.0,0.03629256]
[1625451250747,5.10607058,34550.0,34549.0,0.03629256]
[1625451252245,5.04707058,34550.0,34549.0,0.03629256]
[1625451252346,5.10607058,34550.0,34549.0,0.03629256]
[1625451253197,5.10607058,34550.0,34549.0,0.00479256]
[1625451253497,5.10607058,34550.0,34547.0,0.00480183]
[1625451254049,2.89759099,34548.0,34547.0,0.00480183]
[1625451254149,2.95659099,34548.0,34547.0,0.00480183]
[1625451259211,2.95659099,34548.0,34547.0,0.0898299]
[1625451259664,2.95659099,34548.0,34547.0,0.00480183]
[1625451261218,4.32052905,34548.0,34547.0,0.00480183]
[1625451261718,4.32052905,34548.0,34546.0,0.00480247]
[1625451261918,4.26152905,34548.0,34546.0,0.00480247]
[1625451262370,1.1930856,34548.0,34547.0,0.08503148]
[1625451262468,1.1930856,34548.0,34547.0,0.37417148]
[1625451262769,1.1930856,34548.0,34547.0,0.37898351]
[1625451262872,1.70500707,34548.0,34547.0,0.63391213]
[1625451263220,1.70500707,34548.0,34547.0,0.69291213]
[1625451263773,1.70500707,34548.0,34547.0,0.35295203]
[1625451265474,1.70500707,34548.0,34547.0,0.06381203]
[1625451265623,1.70500707,34548.0,34547.0,0.00481203]
[1625451265724,1.70500707,34548.0,34547.0,0.34482745]
[1625451266124,2.89886957,34548.0,34547.0,0.59994187]
[1625451266626,2.89886957,34548.0,34547.0,0.25992645]
[1625451267128,3.01686957,34548.0,34547.0,0.25992645]
[1625451267629,4.38144598,34548.0,34547.0,0.00481203]
[1625451267881,4.60370598,34548.0,34547.0,0.00481203]
[1625451270332,4.60370598,34548.0,34544.0,0.08513781]
[1625451270333,4.60370598,34548.0,34545.0,0.00481217]
[1625451270535,6.13903598,34548.0,34547.0,0.00481213]